Cogmind - Beta 16 @@@ ROGUE MODE // 2025.12.31 @ 00:00:43 Player: Xcalibur Result: Destroyed by PC-6A5(R) with Subdweller Laser Performance ------------- Evolutions (0) 0 Regions Visited (3) 600 Robots Destroyed (16) 80 Value Destroyed (228) 228 Prototype IDs (0) 0 Alien Tech Used (0) 0 Bonus (-6) -6 TOTAL SCORE: 902 Bonus ------- Friendly Fire -6 Cogmind --------- Core Integrity 0/250 Matter 292/300 Energy 98/100 System Corruption 0% Temperature Cool (6) Movement Core (50) Location -10/Subcaves Parts ------- > --- POWER (1) -------- (None) > --- PROPULSION (2) --- (None) > --- UTILITY (2) ------ (None) > --- WEAPON (2) ------- (None) > --- INVENTORY (5) ---- Light Ion Engine Small Storage Unit Seismic Detector Light Assault Rifle Welding Torch Peak State ------------ > --- POWER ------------ Ion Engine > --- PROPULSION ------- Light Treads Wheel > --- UTILITY ---------- Small Storage Unit Seismic Detector > --- WEAPON ----------- Medium Laser Light Assault Rifle > --- INVENTORY -------- Light Ion Engine Light Treads Aluminum Leg Aluminum Leg Wheel Improved Terrain Scanner EM Pulse Gun Mining Laser [Rating: 8] Favorites ----------- Power Ion Engine Engine Ion Engine Propulsion Light Treads Treads Light Treads Wheel Wheel Utility Large Storage Unit Device Seismic Detector Storage Large Storage Unit Protection Weapon Shielding Weapon Light Assault Rifle Energy Gun EM Pulse Gun Ballistic Gun Light Assault Rifle Build | -11 -10 -10 -10 ------- Run | Yrd Mat Min Sub Slots Evolved . | . . . . Power . | . . . . Propulsion . | . . . . Utility . | . . . . Weapon . | . . . . Parts Attached 16 | 9 4 2 1 Power 2 | 2 . . . Engine 2 | 2 . . . Core . | . . . . Reactor . | . . . . Propulsion 4 | 2 2 . . Treads 2 | 1 1 . . Leg . | . . . . Wheel 2 | 1 1 . . Hover . | . . . . Flight . | . . . . Utility 4 | 2 1 1 . Device 1 | 1 . . . Storage 2 | 1 . 1 . Processor . | . . . . Hackware . | . . . . Protection 1 | . 1 . . Artifact . | . . . . Weapon 6 | 3 1 1 1 Energy Gun 3 | 2 . . 1 Energy Cannon . | . . . . Ballistic Gun 3 | 1 1 1 . Ballistic Cannon . | . . . . Launcher . | . . . . Special Weapon . | . . . . Impact Weapon . | . . . . Slashing Weapon . | . . . . Piercing Weapon . | . . . . Special Melee Weapon . | . . . . Unidentified Prototypes . | . . . . Parts Lost 10 | . 5 . 5 Power 1 | . . . 1 Propulsion 4 | . 2 . 2 Utility 1 | . 1 . . Weapon 4 | . 2 . 2 Highest Loss Streak 5 | . 5 . 5 To Critical Strikes . | . . . . Average Backups 8 | 4 7 10 10 Power 1 | . 1 1 1 Propulsion 1 | 2 2 1 . Utility 1 | . 1 2 3 Weapon 3 | . 2 4 3 Tool/Special . | . . . . Unused Backups 11 | . 3 . 8 Power 1 | . . . 1 Propulsion 3 | . 2 . 1 Utility 3 | . 1 . 2 Weapon 3 | . . . 3 Tool/Special 1 | . . . 1 Average Slot Usage (%) 85 | . 92 85 66 Engine 13 | . 14 14 11 Treads 13 | . 13 14 7 Wheel 13 | . 12 14 11 Device 1 | . 5 . . Storage 13 | . 14 14 11 Protection 1 | . 5 . . Energy Gun 13 | . 13 14 11 Ballistic Gun 13 | . 13 14 11 Peak Build Rating 8 | 8 8 7 7 Average Rating 6 | 4 7 6 5 On Entrance 5 | . 8 6 7 Avg Prop Armor Cover (%) 12 | 13 12 12 . Naked Turns 4 | . . . 4 Heaviest Build 28 | 14 14 28 25 Greatest Support 20 | 20 20 10 10 Greatest Overweight (x) 2 | 1 1 2 2 Average Overweight (x) 1 | . . 1 1 Largest Inventory Capacity 15 | 8 8 15 15 Average Capacity 11 | 6 8 14 14 Most Carried 13 | 8 8 13 13 Average Carried 8 | 4 7 10 10 Final Capacity 15 | 8 8 15 5 Final Carried 13 | 8 5 13 5 Class Distribution -------------------- 100% | Mutant Dominant Class ---------------- Mutant | -10/Materials Mutant | -10/Mines Mutant | -10/Subcaves Resources | -11 -10 -10 -10 ----------- Run | Yrd Mat Min Sub Matter Collected 446 | 293 75 78 . Remotely . | . . . . Salvage Created 424 | 122 215 40 47 Parts 34 | 5 21 5 3 Haulers Intercepted . | . . . . Recyclers Shooed . | . . . . Parts Field Recycled . | . . . . Retrieved Matter . | . . . . Parts Self-Destructed . | . . . . Prevented . | . . . . Parts Restored . | . . . . Kills | -11 -10 -10 -10 ------- Run | Yrd Mat Min Sub Combat Hostiles Destroyed 9 | . 6 2 1 Guns 8 | . 5 2 1 AOE 1 | . 1 . . Classes Destroyed 7 | 2 4 . 1 Worker 1 | . 1 . . Builder 2 | . 2 . . Tunneler 2 | 2 . . . Recycler 2 | 1 1 . . Swarmer 6 | . 4 2 . Grunt 2 | . 2 . . Subdweller 1 | . . . 1 Best Kill Streak 6 | 2 6 2 1 Combat Bots Only 4 | . 4 2 1 Max Kills in Single Turn 5 | 1 5 1 1 Gunslinging . | . . . . Exploded 1 | . 1 . . Melee . | . . . . Uniques/NPCs Destroyed . | . . . . Combat | -11 -10 -10 -10 -------- Run | Yrd Mat Min Sub Hostile Shots Fired 99 | . 66 8 25 Missed 31 | . 22 5 4 Hits 68 | . 44 3 21 Projectile 68 | . 44 3 21 Damage Taken 1146 | 30 661 23 432 Core 262 | . 151 . 111 Absorbed by Shields . | . . . . Redirected to Shielding 63 | . 63 . . Core Remaining (%) 100 | 100 . . . Volleys Fired 40 | 4 23 4 9 Largest 2 | 2 2 2 2 Hottest 90 | 90 70 60 60 Shots Fired 80 | 8 46 8 18 Gun 80 | 8 46 8 18 Cannon . | . . . . Launcher . | . . . . Special . | . . . . Kinetic 39 | 3 23 4 9 Thermal 31 | 4 19 . 8 Explosive . | . . . . Electromagnetic 10 | 1 4 4 1 Robot Hit Streak 13 | 3 7 2 13 Robot Miss Streak 4 | 1 2 4 1 Penetration Max . | . . . . Secondary Targets 5 | . 3 1 1 Max Gunslinging Chain 1 | . 1 1 1 Shots Hit Robots 55 | 5 30 4 16 Core Hits 26 | 3 14 3 6 Critical Kills . | . . . . Critical Parts Destroyed . | . . . . Critical Strikes 2 | . 2 . . Burn 2 | . 2 . . Melee Attacks . | . . . . Impact . | . . . . Slashing . | . . . . Piercing . | . . . . Sneak Attacks . | . . . . Combat Hostiles . | . . . . Follow-up Attacks . | . . . . Damage Inflicted 1170 | 87 900 35 148 Guns 556 | 63 310 35 148 Cannons . | . . . . Explosions 614 | 24 590 . . Melee . | . . . . Ramming . | . . . . Kinetic 210 | 10 125 13 62 Thermal 302 | 62 164 . 76 Explosive 590 | . 590 . . Electromagnetic 68 | 15 21 22 10 Impact . | . . . . Slashing . | . . . . Piercing . | . . . . Highest Corruption . | . . . . Average Corruption . | . . . . Corruption Purged . | . . . . Corruption Blocked . | . . . . Overload Shots . | . . . . Overflow Damage 95 | . 95 . . Projectiles . | . . . . Explosions 95 | . 95 . . Melee . | . . . . Knockbacks . | . . . . Impact . | . . . . Kinetic . | . . . . Secondary . | . . . . Self-Inflicted Damage 30 | 30 . . . Shots 1 | 1 . . . Rammed . | . . . . Targets Rammed . | . . . . Kicked . | . . . . Crushed . | . . . . Highest Temperature 212 | 60 212 20 . Average Temperature 91 | 25 109 15 . Received Heat Transfer 195 | . 114 . 81 Siege Activations . | . . . . Martial Activations . | . . . . Shielding Activations . | . . . . Robots Disrupted . | . . . . Combat Hostiles . | . . . . Robots Corrupted . | . . . . Combat Hostiles . | . . . . Parts Fried . | . . . . Impact Corruptions . | . . . . Robots Melted . | . . . . Combat Hostiles . | . . . . Parts Melted . | . . . . Heat Transferred 965 | 161 629 . 175 Parts Sabotaged . | . . . . Parts Stolen . | . . . . Parts Stripped . | . . . . Power Chain Reactions 1 | 1 . . . Alert | -11 -10 -10 -10 ------- Run | Yrd Mat Min Sub Maximum Alert Level . | . . . . Low Security (%) 100 | 100 100 100 . Level 1 . | . . . . Level 2 . | . . . . Level 3 . | . . . . Level 4 . | . . . . Level 5 . | . . . . High Security . | . . . . Max Security . | . . . . Peak Influence 107 | 10 107 77 . Initial 37 | . . 37 . Average 23 | 2 40 20 . Influence Increases 262 | 15 207 40 . Destroy 0b10 Robot/C 160 | . 120 40 . Destroy 0b10 Robot/NC 35 | 15 20 . . Destroy Leader 20 | . 20 . . Successful Hack 6 | . 6 . . Disable Machine 15 | . 15 . . Destroy Structure 11 | . 11 . . Lose Combat Pursuer 15 | . 15 . . Influence Decreases 262 | 15 110 137 . Entered New Map 60 | . . 60 . Time Decay 152 | 15 60 77 . Lost Part 50 | . 50 . . Squads Dispatched . | . . . . Investigation . | . . . . Extermination . | . . . . Reinforcement . | . . . . Assault . | . . . . Garrison . | . . . . Intercept . | . . . . Searches Triggered . | . . . . Construction Impeded . | . . . . Haulers Reinforced . | . . . . Active Scanning Responses . | . . . . Cargo Convoy Interrupts . | . . . . Stealth | -11 -10 -10 -10 --------- Run | Yrd Mat Min Sub Distress Signals 2 | . 2 . . Communications Jammed . | . . . . Distress Signals . | . . . . Times Spotted 20 | . 13 3 4 Peak Tracking Total 5 | . 5 2 3 Tactical Retreats 1 | . 1 . . Traps | -11 -10 -10 -10 ------- Run | Yrd Mat Min Sub Traps Triggered . | . . . . Indirectly . | . . . . Trap Hack Attempts . | . . . . Triggered . | . . . . Disarmed . | . . . . Reprogrammed . | . . . . Reused . | . . . . Traps Extracted . | . . . . Installed . | . . . . Triggered . | . . . . Machines | -11 -10 -10 -10 ---------- Run | Yrd Mat Min Sub Machines Disabled 1 | . 1 . . Max in Single Turn 1 | . 1 . . Machines Repaired . | . . . . Machines Dismantled . | . . . . Machines Sabotaged . | . . . . Overloaded Fab Kills . | . . . . Hacking | -11 -10 -10 -10 --------- Run | Yrd Mat Min Sub Machines Accessed 2 | . 2 . . Terminals 1 | . 1 . . Fabricators . | . . . . Repair Stations . | . . . . Recycling Units 1 | . 1 . . Scanalyzers . | . . . . Garrison Access . | . . . . Total Hacks 5 | . 5 . . Successful 3 | . 3 . . Failed 1 | . 1 . . Catastrophic . | . . . . Database Lockouts 1 | . 1 . . Manual 3 | . 3 . . Terminals 4 | . 4 . . Fabricators . | . . . . Repair Stations . | . . . . Recycling Units 1 | . 1 . . Scanalyzers . | . . . . Garrison Access . | . . . . Terminal Hacks 2 | . 2 . . Robot Analysis 1 | . 1 . . Locate Traps 1 | . 1 . . Fabricator Hacks . | . . . . Repair Station Hacks . | . . . . Recycling Unit Hacks 1 | . 1 . . Report Inventory 1 | . 1 . . Scanalyzer . | . . . . Garrison Access Hacks . | . . . . Unauthorized Hacks . | . . . . Terminals . | . . . . Fabricators . | . . . . Repair Stations . | . . . . Recycling Units . | . . . . Scanalyzers . | . . . . Garrison Access . | . . . . Data Cores Recovered . | . . . . Used . | . . . . Hacking Detections 1 | . 1 . . Full Trace Events . | . . . . Feedback Events . | . . . . Feedback Blocked . | . . . . Robot Schematics Acquired . | . . . . Robots Built . | . . . . Authchips . | . . . . Time . | . . . . Total Robot Build Rating . | . . . . Part Schematics Acquired . | . . . . Parts Built . | . . . . Authchips . | . . . . Time . | . . . . Total Part Build Rating . | . . . . Part Studies Acquired . | . . . . Parts Repaired . | . . . . Time . | . . . . Parts Recycled . | . . . . Recycled Matter . | . . . . Retrieved Matter . | . . . . Retrieved Components . | . . . . Parts Scanalyzed . | . . . . Part Schematics Acquired . | . . . . Parts Damaged . | . . . . Bothacking | -11 -10 -10 -10 ------------ Run | Yrd Mat Min Sub Used RIF Installer . | . . . . Robots Hacked . | . . . . Non-combat . | . . . . Combat . | . . . . Robot Hacks Applied . | . . . . Relay Couplers Released . | . . . . Fabnet Peak Effective % . | . . . . Robots Rewired . | . . . . Allies Hacked . | . . . . Hacks Repelled . | . . . . Allies | -11 -10 -10 -10 -------- Run | Yrd Mat Min Sub Total Allies . | . . . . Largest Group . | . . . . Highest-Rated Group . | . . . . Highest-Rated Ally . | . . . . Total Orders . | . . . . Ally Attacks . | . . . . Total Damage . | . . . . Kills . | . . . . Allies Corrupted . | . . . . Allies Melted . | . . . . Intel | -11 -10 -10 -10 ------- Run | Yrd Mat Min Sub Active Infowar (turns) 89 | 20 69 . . Seismic 89 | 20 69 . . Robot Analysis Total 1 | . 1 . . Derelict Logs Recovered 1 | . . 1 . Drone Launches . | . . . . Drone Recoveries . | . . . . Exploration | -11 -10 -10 -10 ------------- Run | Yrd Mat Min Sub Turns Passed 649 | 99 185 319 46 Spaces Moved 475 | 72 110 271 22 Core 25 | 16 . . 9 Treads 8 | 6 2 . . Legs . | . . . . Wheels 442 | 50 108 271 13 Hover . | . . . . Flight . | . . . . Fastest Speed 50 | 50 95 95 50 Average Speed 101 | 88 96 108 85 Slowest Speed 160 | 160 160 110 110 Overloaded Moves . | . . . . Propulsion Burnouts . | . . . . Robots Hopped . | . . . . Potential Cave-ins . | . . . . Cave-ins Triggered . | . . . . Exploration Rate (%) 19 | 4 30 41 2 Regions Visited 3 Branch Regions 2 Pre-discovered Areas 1 | . . 1 . Known Exits Taken . | . . . . Unknown Exits Taken 3 | 1 1 1 . Scrap Searched 2 | . . 2 . Spaces Dug . | . . . . Terrain Destroyed 18 | 5 13 . . Melee . | . . . . Projectile . | . . . . AOE 18 | 5 13 . . Terrain Rammed . | . . . . Walls Destroyed . | . . . . Machines Disabled . | . . . . Actions | -11 -10 -10 -10 --------- Run | Yrd Mat Min Sub Total 567 | 97 149 288 33 Wait 8 | . 3 5 . Move 472 | 71 109 270 22 Hop . | . . . . Pick Up 19 | 9 4 6 . Fast Attach 9 | 8 . 1 . Attach 6 | . 4 . 2 Detach 2 | 1 . 1 . Swap 4 | 1 2 1 . Drop 7 | 3 4 . . Fire 40 | 4 23 4 9 Melee . | . . . . Ram . | . . . . Kick . | . . . . Crush . | . . . . Escape Stasis . | . . . . Rewire . | . . . . Trap . | . . . . Miscellaneous . | . . . . Route ------- -11/Scrapyard -10/Materials (discovered 2 exits: [*Min] / [*Sub]) -10/Mines (discovered 2 exits: [*Mat] / [*Sub]) -10/Subcaves (discovered 1 exit: [*Mat]) History --------- Turn | Location | Event 30 | -11/Scrapyard | Discovered new exit (range 14) 100 | -11/Scrapyard | Entered Materials 142 | -10/Materials | Discovered new exit (range 8) 239 | -10/Materials | Core integrity fell below 50% 269 | -10/Materials | Lost 5 parts (2n1u2w) 273 | -10/Materials | Discovered new exit (range 13) 276 | -10/Materials | Central database locked down 285 | -10/Materials | Entered Mines 320 | -10/Mines | Build established: Mutant 488 | -10/Mines | Learned location of Storage (-7) 490 | -10/Mines | Discovered new exit (range 6) 542 | -10/Mines | Discovered new exit (range 14) 604 | -10/Mines | Entered Subcaves 605 | -10/Subcaves | Approached by a straggling Scientist 626 | -10/Subcaves | Core integrity fell below 20% 632 | -10/Subcaves | Discovered new exit (range 8) 646 | -10/Subcaves | Released all parts (3) 650 | -10/Subcaves | Destroyed by PC-6A5(R) with Subdweller Laser Last Messages --------------- 00605_ G5-NJ2(c): "Thank the algorithms! I was beginning to lose hope I'd never make it past all the Subs lurking out here." 00605_ EM Pulse Gun destroyed. 00608_ G5-NJ2(c): "Hey, let me tag along and I can get us both out of this nasty situation. At least I think I can... The group I got separated from was talking about a shortcut back to the UFD." 00610_ UH-2SB(z): "She is not going to be happy we haven't found any suitable candidates yet." 00613_ Ion Engine destroyed. 00629_ N1-YHN(R) destroyed. 00629_ Switching to secondary target: VQ-V74(R). 00629_ Lgt. Treads destroyed. 00630_ Subatomizers dissect the Sub. Power Source. 00632_ EXIT=FOUND 00635_ G5-NJ2(c) destroyed. 00645_ Sml. Laser destroyed. 00645_ Wheel destroyed. 00646_ Released Lrg. Storage Unit. 00646_ Released Lgt. Assault Rifle. 00646_ Released Lgt. Ion Engine. Map ----- +----------------------------------------------------+ | ?????????????????????????????????????????????????? | | ?????????????????????????????????????????????????? | | ?????????????????????????????????????????????????? | | ?????????????????????????????????????????????????? | | ?????????????????????????????????????????????????? | | ?????????????????????????????????????????????????? | | ?????????????????????????????????????????????????? | | ?????????????????????????????????????????????????? | | ?????????????????????????????????????????????????? | | ?????????????????????????????????????????????????? | | ?????????????????????????????????????????????????? | | ?????????????????????????????????????????????????? | | ?????????????????????????????????????????????????? | | ?????????????????????????????????????????????????? | | ?????????????????????????????????????????????????? | | ?????????????????????????????????????????????????? | | ?????????????????????????????????????????????????? | | ?????????????????????????????????????????????????? | | ?????????????????????????????????????????????????? | | ?????????????????????????????????????????????????? | | ?????????????????????????????????????????????????? | | ?????????????????????????????##??????????????????? | | ?????????????????????######## ##?????????????????? | | ????????????????????## ## & #?????????????????? | | ????????# ###?????## *%! < ##????????????????? | | ????????# #### @! #????????????????? | | ?????????# =%! ##R ## #????????????????? | | ??????????# # !# ##R ##????????????????????? | | ??????????????# # # # R #????????????????????? | | ??????????????# # #=![#????????????????????? | | ??????????????### ## [!##????????????????????? | | ????????????????##?# # |[!####?????????????????? | | ???????????????????## ## * #?????????????????? | | ????????????????????### #?????????????????? | | ??????????????????????# ##?????????????????? | | ??????????????????????# ##??????????????????? | | ??????????????????????# "#???????????????????? | | ????????????????????? " #???????????????????? | | ??????????????????? """ """#???????????????????? | | ???????????????????# """"""" ???????????????????? | | ???????????????????##"##""" ???????????????????? | | ???????????????????????"""## ??????????????????? | | ???????????????????????????? #???????????????????? | | ?????????????????????????????????????????????????? | | ?????????????????????????????????????????????????? | | ?????????????????????????????????????????????????? | | ?????????????????????????????????????????????????? | | ?????????????????????????????????????????????????? | | ?????????????????????????????????????????????????? | | ?????????????????????????????????????????????????? | +----------------------------------------------------+ Best States ------------- Heat Dissipation 25 Energy Generation 10 Energy Capacity 250 Matter Stores 300 Matter Capacity 300 Sight Range 16 Terrain Scan Density 10 Weapon Shielding 33 Evasion (%) 50 Recoil Reduction 1 Item Schematics ----------------- None Robot Schematics ------------------ None Fabricated ------------ Nothing Repaired ---------- Nothing Studied --------- None Alien Tech Used ----------------- None Achievements -------------- None Challenges ------------ None Game ------ Seed HypercooledCompanionCloak Manual? 0 Play Time 00:14:33 Cumulative 129.3 hours Start 2025.12.30 @ 23:35:08 End 2025.12.31 @ 00:00:43 Sessions 18 Manual Loads 0 Difficulty Rogue Special Mode None Game No. 54 Rogue 54 Adventurer 0 Explorer 0 Win Type - Total 5 Types 5/0/0/0/0/0/0/0/0/0 Lore% 54 Gallery% 50 Achievement% 38 Wizard Run 0 Options --------- Layout 0 ASCII 0 Keyboard 0 Movement Arrows Keybinds 0 Fullscreen 2 Font 18/Terminus Map View 76x50 Zoom Use 0% Tactical HUD 1 Map Filters NONE Filters NONE Steam 1 RUN: ffdc91e5-21b8-466f-a392-5cbdad145e52